fUSD/lending_fUSD_20260524
["ID","MTS","AMOUNT","RATE_DAILY","PERIOD"]
[422908949,1779606646000,-571.8,0.00026296,2]
[422908950,1779606646000,-1032.96,0.00026301,5]
[422908956,1779606646000,-1140.49960397,0.00026851,5]
[422908953,1779606646000,-606.0,0.00026746,3]
[422908958,1779606646000,-3137.52,0.000269,7]
[422908960,1779606646000,-150.0,0.000269,7]
[422908957,1779606646000,-2000.0,0.00026859,7]
[422908959,1779606646000,-900.0,0.000269,9]
[422908970,1779606646000,-150.0,0.00026947,2]
[422908954,1779606646000,-1029.32208614,0.00026851,5]
[422908961,1779606646000,-213.0,0.000269,7]
[422908963,1779606646000,-2405.68,0.00026935,7]
[422908973,1779606646000,-150.0,0.00027,2]
[422908966,1779606646000,-150.0,0.00026947,2]
[422908965,1779606646000,-150.0,0.00026947,2]
[422908967,1779606646000,-150.0,0.00026947,2]
[422908962,1779606646000,-646.65982734,0.00026907,2]
[422908971,1779606646000,-150.0,0.00026947,2]
[422908969,1779606646000,-150.0,0.00026947,2]
[422908964,1779606646000,-150.0,0.00026947,2]
[422908968,1779606646000,-150.0,0.00026947,2]
[422908952,1779606646000,-150.0,0.00026712,4]
[422908992,1779606646000,-206.987241,0.00027397,2]
[422909031,1779606646000,-465.989101,0.00027397,2]
[422909002,1779606646000,-151.773421,0.00027397,2]
[422909037,1779606646000,-304.863148,0.00027397,2]
[422909036,1779606646000,-304.863148,0.00027397,2]
[422909039,1779606646000,-304.863148,0.00027397,2]
[422909040,1779606646000,-304.863148,0.00027397,2]
[422909041,1779606646000,-304.863148,0.00027397,2]
[422909038,1779606646000,-304.863148,0.00027397,2]
[422909048,1779606646000,-1269.6,0.000274,7]
[422909053,1779606646000,-111077.57931707,0.00027544,7]
[422909043,1779606646000,-304.863148,0.00027397,2]
[422909049,1779606646000,-168.94,0.000275,30]
[422909046,1779606646000,-10252.74,0.000274,14]
[422909047,1779606646000,-806.66,0.000274,7]
[422909050,1779606646000,-559.56,0.00027517,7]
[422909051,1779606646000,-150.0,0.00027521,2]
[422909045,1779606646000,-500.0,0.00027399,10]
[422909052,1779606646000,-151.0,0.00027541,7]
[422909044,1779606646000,-14460.87,0.00027397,10]
[422909054,1779606646000,-658.0,0.00021385,7]
[422909055,1779606646000,-112.42395086,0.00022705,7]
[422909056,1779606646000,-185.57604914,0.00022705,7]
[422909057,1779606646000,-121.36895086,0.00027544,7]
[422909058,1779606646000,-1534.42944089,0.00027544,7]
[422909059,1779606646000,-1867.39643538,0.00021,2]
[422909032,1779606646000,-304.863148,0.00027397,2]
[422909034,1779606646000,-304.863148,0.00027397,2]
[422909042,1779606646000,-304.863148,0.00027397,2]
[422909033,1779606646000,-304.863148,0.00027397,2]
[422909012,1779606646000,-1886.452363,0.00027397,2]
[422909014,1779606646000,-1886.452363,0.00027397,2]
[422909015,1779606646000,-1886.452363,0.00027397,2]
[422909035,1779606646000,-304.863148,0.00027397,2]
[422909006,1779606646000,-1886.452363,0.00027397,2]
[422909007,1779606646000,-1886.452363,0.00027397,2]
[422909010,1779606646000,-1886.452363,0.00027397,2]
[422909009,1779606646000,-1886.452363,0.00027397,2]
[422909008,1779606646000,-1886.452363,0.00027397,2]
[422909004,1779606646000,-1886.452363,0.00027397,2]
[422909003,1779606646000,-160.509976,0.00027397,2]
[422909027,1779606646000,-465.989101,0.00027397,2]
[422909005,1779606646000,-1886.452363,0.00027397,2]
[422909028,1779606646000,-465.989101,0.00027397,2]
[422909023,1779606646000,-465.989101,0.00027397,2]
[422909030,1779606646000,-465.989101,0.00027397,2]
[422909020,1779606646000,-465.989101,0.00027397,2]
[422909026,1779606646000,-465.989101,0.00027397,2]
[422909024,1779606646000,-465.989101,0.00027397,2]
[422909019,1779606646000,-1886.452363,0.00027397,2]
[422909001,1779606646000,-151.0,0.00027397,2]
[422909022,1779606646000,-465.989101,0.00027397,2]
[422909029,1779606646000,-465.989101,0.00027397,2]
[422909021,1779606646000,-465.989101,0.00027397,2]
[422909025,1779606646000,-465.989101,0.00027397,2]
[422909017,1779606646000,-1886.452363,0.00027397,2]
[422909061,1779606647000,-660.74356462,0.00021,2]
[422909060,1779606647000,-457.86,0.00021,2]
[422909062,1779606647000,-548.0,0.00023372,7]
[422909064,1779606647000,-12050.72,0.00027397,10]
[422909068,1779606647000,-1014.21123152,0.00027544,7]
[422909063,1779606647000,-418.676,0.00025174,2]
[422909069,1779606647000,-2458.38808899,0.00027544,7]
[422909067,1779606647000,-172.28396995,0.00027544,7]
[422909065,1779606647000,-6326.57429581,0.00027544,7]
[422909071,1779606647000,-452.0,0.00026851,10]
[422909074,1779606647000,-7068.03438783,0.00027544,7]
[422909073,1779606647000,-199.623482,0.0001997,2]
[422909072,1779606647000,-102.35462582,0.00027544,7]
[422909066,1779606647000,-151.0,0.000229,2]
[422909070,1779606647000,-351.686439,0.0001997,2]
[422909081,1779606661000,2500.0,0.00025459,120]
[422909080,1779606661000,2500.0,0.00027691,120]
[422909082,1779606675000,2500.0,0.00026153,120]
[422909083,1779606706000,500.0,0.0002763,120]
[422909084,1779606978000,166.22,0.00028082,120]
[422909086,1779607059000,260.54,0.00028054,120]
[422909088,1779607356000,500.0,0.00027543,120]
[422909089,1779607517000,162.27,7.904e-05,2]
[422909090,1779607547000,500.0,0.00027543,120]
[422909091,1779607571000,500.0,0.00027543,120]
[422909092,1779607598000,500.0,0.00027543,120]
[422909093,1779607612000,511.83847665,0.00027543,120]
[422909094,1779607660000,500.0,0.00027543,120]
[422909095,1779607667000,500.0,0.00027543,120]
[422909096,1779607721000,594.6,0.00027543,120]
[422909097,1779607740000,1000.0,0.00028081,120]
[422909100,1779607831000,-353.8945,9.04e-05,2]
[422909105,1779607831000,-250.0,9.944e-05,2]
[422909102,1779607831000,-776.22747413,9.46e-05,2]
[422909103,1779607831000,-250.0,9.46e-05,2]
[422909104,1779607831000,-162.27,9.88e-05,2]
[422909106,1779607831000,-714.0,9.999e-05,2]
[422909101,1779607831000,-1152.23504927,9.04e-05,2]
[422909108,1779607831000,-6287.83322367,0.000107,2]
[422909109,1779607831000,-162.27,0.00011857,2]
[422909112,1779607831000,-162.27,0.00013833,2]
[422909118,1779607831000,-185.73,0.0001496,2]
[422909113,1779607831000,-2439.44,0.00014624,2]
[422909116,1779607831000,-169.17,0.00014758,2]
[422909110,1779607831000,-294.47,0.000128,2]
[422909111,1779607831000,-159.23,0.00012913,2]
[422909114,1779607831000,-208.8304494,0.00014682,2]
[422909117,1779607831000,-200.0,0.00014848,2]
[422909107,1779607831000,-8495.380064,0.0001,2]
[422909115,1779607831000,-215.34753388,0.00014686,2]
[422909131,1779607832000,-688.72,0.00016401,2]
[422909122,1779607832000,-1517.64,0.000153,2]
[422909125,1779607832000,-162.27,0.00015809,2]
[422909130,1779607832000,-208.5,0.00016366,2]
[422909119,1779607832000,-73798.93140641,0.00015,2]
[422909121,1779607832000,-25479.96230298,0.00015,2]
[422909120,1779607832000,-18561.87179562,0.00015,2]
[422909123,1779607832000,-2271.40549563,0.00015807,2]
[422909124,1779607832000,-19615.81,0.00015809,2]
[422909132,1779607832000,-549.4,0.00016438,2]
[422909129,1779607832000,-200.0,0.0001634,2]
[422909126,1779607832000,-200.92116636,0.000161,7]
[422909135,1779607832000,-1254.41808677,0.000165,2]
[422909137,1779607832000,-1000.0,0.000165,2]
[422909136,1779607832000,-769.82483993,0.000165,2]
[422909138,1779607832000,-159.4489524,0.00016542,2]
[422909133,1779607832000,-6613.54001206,0.000165,2]
[422909127,1779607832000,-1650.0,0.0001611,15]
[422909128,1779607832000,-159.23,0.00016142,2]
[422909134,1779607832000,-11035.99804081,0.000165,2]
[422909153,1779607837000,-166.98,0.00017413,2]
[422909157,1779607837000,-500.0,0.00017847,2]
[422909151,1779607837000,-2000.0,0.00017128,2]
[422909148,1779607837000,-150.99,0.00016922,2]
[422909158,1779607837000,-500.0,0.00017847,2]
[422909155,1779607837000,-403.0,0.000177,5]
[422909152,1779607837000,-500.0,0.00017308,2]
[422909170,1779607837000,-500.0,0.00017847,2]
[422909146,1779607837000,-1158.13839102,0.00016922,2]
[422909149,1779607837000,-166.98,0.00016977,2]
[422909150,1779607837000,-500.0,0.00017128,2]
[422909147,1779607837000,-8841.85160898,0.00016922,2]
[422909142,1779607837000,-500.0,0.00016822,2]
[422909144,1779607837000,-8790.12,0.00016922,2]
[422909145,1779607837000,-9999.99,0.00016922,2]
[422909143,1779607837000,-299.99,0.00016922,4]
[422909141,1779607837000,-7.5310476,0.00016542,2]
[422909156,1779607837000,-500.0,0.00017847,2]
[422909160,1779607837000,-500.0,0.00017847,2]
[422909154,1779607837000,-792.76240828,0.000177,2]
[422909159,1779607837000,-500.0,0.00017847,2]
[422909171,1779607837000,-500.0,0.00017847,2]
[422909177,1779607837000,-500.0,0.00017847,2]
[422909175,1779607837000,-165.17303732,0.00017847,2]
[422909181,1779607837000,-300.0,0.00017847,2]
[422909179,1779607837000,-500.0,0.00017847,2]
[422909178,1779607837000,-500.0,0.00017847,2]
[422909174,1779607837000,-500.0,0.00017847,2]
[422909176,1779607837000,-500.0,0.00017847,2]
[422909172,1779607837000,-500.0,0.00017847,2]
[422909180,1779607837000,-500.0,0.00017847,2]
[422909169,1779607837000,-500.0,0.00017847,2]
[422909167,1779607837000,-500.0,0.00017847,2]
[422909166,1779607837000,-500.0,0.00017847,2]
[422909165,1779607837000,-500.0,0.00017847,2]
[422909168,1779607837000,-500.0,0.00017847,2]
[422909164,1779607837000,-500.0,0.00017847,2]
[422909163,1779607837000,-500.0,0.00017847,2]
[422909162,1779607837000,-500.0,0.00017847,2]
[422909161,1779607837000,-500.0,0.00017847,2]
[422909173,1779607837000,-500.0,0.00017847,2]
[422909185,1779607838000,-500.0,0.00017999,2]
[422909184,1779607838000,-4254.46047241,0.000179,2]
[422909183,1779607838000,-1238.8775972,0.0001789,2]
[422909182,1779607838000,-166.98,0.00017848,2]
[422909186,1779607838000,-8021.4048369,0.00018,2]
[422909190,1779607838000,-1011.47570856,0.00018,2]
[422909187,1779607838000,-805.6,0.00018,2]
[422909189,1779607838000,-383.736,0.00018,2]
[422909191,1779607838000,-1096.30377582,0.00018,2]
[422909192,1779607838000,-45350.0,0.00018,2]
[422909194,1779607838000,-357.03368088,0.00018,2]
[422909193,1779607838000,-38476.7083664,0.00018,2]
[422909188,1779607838000,-258.6,0.00018,2]
[422909197,1779607840000,-534.0,0.00015709,2]
[422909196,1779607840000,-1345.70035005,0.00015709,2]
[422909195,1779607840000,-776.41377558,0.00015709,2]
[422909206,1779607842000,-457.68,0.00015709,2]
[422909207,1779607843000,-807.21,0.00015709,2]
[422909280,1779607845000,-1127.99615857,0.00015709,2]
[422909282,1779607846000,-691.22166808,0.0001684,2]
[422909283,1779607846000,-4917.94959537,0.0001684,2]
[422909281,1779607846000,-866.54300849,0.00015709,2]
[422909285,1779607888000,509.01199367,0.00027543,120]
[422909298,1779608472000,182.99,0.00027002,120]
[422909300,1779608744000,232.65576228,0.00027543,120]
[422909471,1779608942000,1000.0,0.0002808,120]
[422909490,1779609031000,-30000.0,0.00016438,2]
[422909483,1779609031000,-168.06,0.00013441,2]
[422909482,1779609031000,-168.06,0.00011201,2]
[422909485,1779609031000,-5.84034943,0.00016437,2]
[422909479,1779609031000,-366.17109667,9.857e-05,2]
[422909480,1779609031000,-29.63148083,0.0001,2]
[422909478,1779609031000,-168.06,8.961e-05,2]
[422909481,1779609031000,-132.27787145,0.0001,2]
[422909487,1779609031000,-300.0,0.00016437,2]
[422909484,1779609031000,-168.06,0.00015681,2]
[422909488,1779609031000,-1200.0,0.00016437,2]
[422909486,1779609031000,-294.15965057,0.00016437,2]
[422909494,1779609031000,-166.98,0.0001707,2]
[422909493,1779609031000,-215.34753388,0.00016958,2]
[422909497,1779609031000,-2932.2506458,0.00017631,2]
[422909495,1779609031000,-169.49,0.00017502,2]
[422909498,1779609031000,-26171.64657256,0.00017631,2]
[422909492,1779609031000,-160.0,0.00016483,2]
[422909491,1779609031000,-434.6403,0.00016442,2]
[422909489,1779609031000,-503.6,0.00016438,2]
[422909496,1779609031000,-500.0,0.00017589,2]
[422909557,1779609032000,-453.90085798,0.000181,2]
[422909561,1779609032000,-503.6,0.0001841,2]
[422909553,1779609032000,-182.99,0.00018001,2]
[422909556,1779609032000,-344.36,0.00018093,2]
[422909552,1779609032000,-1207.11017478,0.00018,2]
[422909555,1779609032000,-277.43,0.00018089,2]
[422909554,1779609032000,-210.29,0.00018059,2]
[422909559,1779609032000,-453.90085798,0.000182,2]
[422909558,1779609032000,-1801.35715722,0.000181,2]
[422909569,1779609032000,-500.0,0.00018978,2]
[422909568,1779609032000,-500.0,0.00018978,2]
[422909564,1779609032000,-500.0,0.00018942,2]
[422909562,1779609032000,-7915.08,0.00018533,2]
[422909563,1779609032000,-159.06572239,0.000187,2]
[422909549,1779609032000,-453.90085798,0.00018,2]
[422909565,1779609032000,-500.0,0.00018978,2]
[422909567,1779609032000,-500.0,0.00018978,2]
[422909566,1779609032000,-500.0,0.00018978,2]
[422909571,1779609032000,-500.0,0.00018978,2]
[422909573,1779609032000,-500.0,0.00018978,2]
[422909576,1779609032000,-500.0,0.00018978,2]
[422909575,1779609032000,-500.0,0.00018978,2]
[422909570,1779609032000,-500.0,0.00018978,2]
[422909551,1779609032000,-4560.98748723,0.00018,2]
[422909535,1779609032000,-500.0,0.00017999,2]
[422909547,1779609032000,-500.0,0.00017999,2]
[422909572,1779609032000,-159.20790693,0.00018978,2]
[422909499,1779609032000,-13832.63154234,0.00017631,2]
[422909502,1779609032000,-2758.6373053,0.00017631,2]
[422909501,1779609032000,-2696.8333591,0.00017631,2]
[422909500,1779609032000,-4191.090087,0.00017631,2]
[422909504,1779609032000,-62107.2592227,0.00017631,2]
[422909508,1779609032000,-254.00184555,0.00017663,2]
[422909506,1779609032000,-648.2799289,0.00017631,2]
[422909510,1779609032000,-4763.07183704,0.00017772,2]
[422909512,1779609032000,-208.8304494,0.00017877,2]
[422909526,1779609032000,-500.0,0.00017999,2]
[422909528,1779609032000,-500.0,0.00017999,2]
[422909533,1779609032000,-200.35260023,0.00017999,2]
[422909530,1779609032000,-315.95739977,0.00017999,2]
[422909517,1779609032000,-168.06,0.00017922,2]
[422909521,1779609032000,-500.0,0.00017999,2]
[422909516,1779609032000,-299.99,0.00017918,4]
[422909514,1779609032000,-500.0,0.00017918,2]
[422909519,1779609032000,-7027.32,0.00017922,2]
[422909524,1779609032000,-500.0,0.00017999,2]
[422909537,1779609032000,-500.0,0.00017999,2]
[422909546,1779609032000,-569.83,0.00017999,2]
[422909548,1779609032000,-150.00000101,0.00018,2]
[422909550,1779609032000,-10506.41486197,0.00018,2]
[422909577,1779609032000,-500.0,0.00018978,2]
[422909560,1779609032000,-480.79081795,0.00018361,2]
[422909581,1779609032000,-151.0,0.0001898,2]
[422909605,1779609032000,-151.0,0.0001898,2]
[422909606,1779609032000,-151.0,0.0001898,2]
[422909608,1779609032000,-151.0,0.0001898,2]
[422909609,1779609032000,-151.0,0.0001898,2]
[422909610,1779609032000,-151.0,0.0001898,2]
[422909613,1779609032000,-151.0,0.0001898,2]
[422909611,1779609032000,-151.0,0.0001898,2]
[422909614,1779609032000,-151.0,0.0001898,2]
[422909615,1779609032000,-151.0,0.0001898,2]
[422909617,1779609032000,-151.0,0.0001898,2]
[422909616,1779609032000,-151.0,0.0001898,2]
[422909612,1779609032000,-151.0,0.0001898,2]
[422909618,1779609032000,-151.0,0.0001898,2]
[422909622,1779609032000,-500.0,0.0001898,2]
[422909624,1779609032000,-500.0,0.0001898,2]
[422909621,1779609032000,-500.0,0.0001898,2]
[422909619,1779609032000,-151.0,0.0001898,2]
[422909625,1779609032000,-500.0,0.0001898,2]
[422909628,1779609032000,-500.0,0.0001898,2]
[422909623,1779609032000,-500.0,0.0001898,2]
[422909620,1779609032000,-151.0,0.0001898,2]
[422909627,1779609032000,-500.0,0.0001898,2]
[422909574,1779609032000,-500.0,0.00018978,2]
[422909601,1779609032000,-151.0,0.0001898,2]
[422909604,1779609032000,-151.0,0.0001898,2]
[422909607,1779609032000,-151.0,0.0001898,2]
[422909602,1779609032000,-151.0,0.0001898,2]
[422909578,1779609032000,-500.0,0.00018978,2]
[422909579,1779609032000,-213.0,0.00018979,2]
[422909580,1779609032000,-3578.51,0.0001898,2]
[422909582,1779609032000,-200.0,0.0001898,2]
[422909583,1779609032000,-151.0,0.0001898,2]
[422909585,1779609032000,-151.0,0.0001898,2]
[422909600,1779609032000,-151.0,0.0001898,2]
[422909586,1779609032000,-151.0,0.0001898,2]
[422909592,1779609032000,-151.0,0.0001898,2]
[422909589,1779609032000,-151.0,0.0001898,2]
[422909587,1779609032000,-500.0,0.0001898,2]
[422909626,1779609032000,-500.0,0.0001898,2]
[422909584,1779609032000,-1734.62772924,0.0001898,2]
[422909588,1779609032000,-151.0,0.0001898,2]
[422909590,1779609032000,-151.0,0.0001898,2]
[422909591,1779609032000,-151.0,0.0001898,2]
[422909594,1779609032000,-151.0,0.0001898,2]
[422909595,1779609032000,-151.0,0.0001898,2]
[422909596,1779609032000,-151.0,0.0001898,2]
[422909603,1779609032000,-151.0,0.0001898,2]
[422909598,1779609032000,-151.0,0.0001898,2]
[422909597,1779609032000,-151.0,0.0001898,2]
[422909593,1779609032000,-151.0,0.0001898,2]
[422909599,1779609032000,-151.0,0.0001898,2]
[422909637,1779609033000,-1600.0,0.00019,2]
[422909638,1779609033000,-500.0,0.00018978,2]
[422909635,1779609033000,-1690.0,0.00019,2]
[422909636,1779609033000,-2934.37083184,0.00019,2]
[422909639,1779609033000,-374.59964105,0.00018978,2]
[422909630,1779609033000,-500.0,0.0001898,2]
[422909631,1779609033000,-500.0,0.0001898,2]
[422909632,1779609033000,-500.0,0.0001898,2]
[422909629,1779609033000,-500.0,0.0001898,2]
[422909640,1779609033000,-125.40035895,0.00018978,2]
[422909634,1779609033000,-521.20369368,0.0001898,2]
[422909642,1779609033000,-520.16321438,0.00019,2]
[422909633,1779609033000,-500.0,0.0001898,2]
[422909650,1779609033000,-221.88543241,0.00019178,2]
[422909643,1779609033000,-364.23786313,0.0001901,7]
[422909641,1779609033000,-179.8045487,0.00019,2]
[422909644,1779609033000,-217.93115113,0.00019078,2]
[422909645,1779609033000,-185.02695778,0.00019178,2]
[422909646,1779609033000,-191.87295522,0.00019178,2]
[422909647,1779609033000,-198.97225456,0.00019178,2]
[422909648,1779609033000,-206.33422798,0.00019178,2]
[422909649,1779609033000,-213.96859442,0.00019178,2]
[422909652,1779609033000,-500.0,0.00018978,2]
[422909654,1779609033000,-88.42412838,0.00019178,2]
[422909653,1779609033000,-77.30583005,0.00019178,2]
[422909651,1779609033000,-152.78936336,0.00019178,2]
[422909668,1779609041000,-500.0,0.00018978,2]
[422909669,1779609041000,-446.11,0.00018978,2]
[422909673,1779609041000,-53.89,0.00018978,2]
[422909674,1779609041000,-360.76330805,0.00018978,2]
[422909709,1779609043000,-148.70642275,0.00018978,2]
[422909708,1779609043000,-139.23669195,0.00018978,2]
[422909712,1779609043000,-239.68282581,0.00018978,2]
[422909711,1779609043000,-260.31717419,0.00018978,2]
[422909713,1779609043000,-229.92717419,0.00018978,2]
[422909714,1779609043000,-270.07282581,0.00018978,2]
[422909718,1779609043000,-500.0,0.00018978,2]
[422909717,1779609043000,-500.0,0.00018978,2]
[422909715,1779609043000,-500.0,0.00018978,2]
[422909719,1779609043000,-500.0,0.00018978,2]
[422909716,1779609043000,-500.0,0.00018978,2]
[422909720,1779609043000,-500.0,0.00018978,2]
[422909710,1779609043000,-351.29357725,0.00018978,2]
[422909732,1779609043000,-500.0,0.00018978,2]
[422909722,1779609043000,-500.0,0.00018978,2]
[422909736,1779609043000,-311.34556105,0.00018978,2]
[422909727,1779609043000,-500.0,0.00018978,2]
[422909725,1779609043000,-500.0,0.00018978,2]
[422909726,1779609043000,-500.0,0.00018978,2]
[422909729,1779609043000,-500.0,0.00018978,2]
[422909731,1779609043000,-329.01105089,0.00018978,2]
[422909723,1779609043000,-500.0,0.00018978,2]
[422909724,1779609043000,-500.0,0.00018978,2]
[422909735,1779609043000,-500.0,0.00018978,2]
[422909733,1779609043000,-500.0,0.00018978,2]
[422909734,1779609043000,-500.0,0.00018978,2]
[422909721,1779609043000,-500.0,0.00018978,2]
[422909742,1779609046000,-266.08633524,0.00019178,2]
[422909740,1779609046000,-247.43723804,0.00019178,2]
[422909738,1779609046000,-188.65443895,0.00018978,2]
[422909743,1779609046000,-275.93152964,0.00019178,2]
[422909744,1779609046000,-286.14099624,0.00019178,2]
[422909739,1779609046000,-150.18458719,0.00019178,2]
[422909746,1779609046000,-365.93502764,0.00019178,2]
[422909745,1779609046000,-296.7282131,0.00019178,2]
[422909747,1779609046000,-69.08735455,0.00019178,2]
[422909748,1779609046000,-159.23,0.0001937,2]
[422909749,1779609046000,-227.35517797,0.000194,2]
[422909750,1779609046000,-507.500005,0.000194,2]
[422909741,1779609046000,-256.59241585,0.00019178,2]
[422909757,1779609304000,162.61,0.00028082,120]
[422909758,1779609359000,500.0,0.00027701,120]
[422909759,1779609386000,500.0,0.00027701,120]
[422909760,1779609518000,546.08,0.00027701,120]
[422909761,1779609670000,500.0,0.00027731,120]
[422909767,1779610008000,221.94,0.00027848,120]
[422909769,1779610140000,1000.0,0.00028081,120]
[422909770,1779610181000,1117.09319593,0.00028,120]
[422909774,1779610231000,-170.84,9.485e-05,2]
[422909775,1779610231000,-502.0,0.0001537,2]
[422909778,1779610231000,-1001.49013792,0.00016474,2]
[422909779,1779610231000,-165.34538064,0.00016474,2]
[422909777,1779610231000,-245.16986208,0.00016474,2]
[422909780,1779610231000,-366.56461936,0.00016474,2]
[422909776,1779610231000,-419.7,0.00016438,2]
[422909788,1779610232000,-208.8304494,0.00018999,2]
[422909781,1779610232000,-418.43538064,0.0001841,2]
[422909783,1779610232000,-221.94,0.00018565,2]
[422909782,1779610232000,-1.26461936,0.0001841,2]
[422909786,1779610232000,-2110.624,0.00018991,2]
[422909785,1779610232000,-172.18,0.00018645,2]
[422909787,1779610232000,-171.582,0.00018991,2]
[422909789,1779610232000,-151.0,0.00019018,2]
[422909791,1779610232000,-1148.76047939,0.00019021,2]
[422909784,1779610232000,-185.73,0.00018588,2]
[422909792,1779610232000,-1249.39039257,0.00019021,2]
[422909801,1779610232000,-673.50309465,0.00019021,2]
[422909799,1779610232000,-15390.0,0.00019021,2]
[422909796,1779610232000,-6910.7022361,0.00019021,2]
[422909795,1779610232000,-47117.8326051,0.00019021,2]
[422909790,1779610232000,-2385.50792738,0.00019021,2]
[422909804,1779610232000,-857.00543302,0.00019021,2]
[422909793,1779610232000,-500.0,0.00019021,2]
[422909794,1779610232000,-481.50445376,0.00019021,2]
[422909797,1779610232000,-44294.94197823,0.00019021,2]
[422909831,1779610235000,932.18,0.00028082,120]
[422909833,1779610238000,-5043.8976806,0.00019021,2]
[422909840,1779610238000,-285.05709039,0.00019084,2]
[422909838,1779610238000,-2023.2261267,0.00019084,2]
[422909839,1779610238000,-774.68313241,0.00019084,2]
[422909836,1779610238000,-11861.92671769,0.00019084,2]
[422909837,1779610238000,-2000.03787519,0.00019084,2]
[422909835,1779610238000,-37320.11374098,0.00019021,2]
[422909834,1779610238000,-579.78867862,0.00019021,2]
[422909879,1779610243000,-1269.06899161,0.00019084,2]
[422909880,1779610243000,-556.3861,0.00019084,2]
[422909888,1779610245000,500.0,0.00027731,120]
[422909893,1779610246000,-4476.86622697,0.00019084,2]
[422909892,1779610246000,-1643.01793077,0.00019084,2]
[422909891,1779610246000,-965.14532639,0.00019084,2]
[422909890,1779610246000,-548.95743459,0.00019084,2]
[422909898,1779610293000,500.0,0.00027549,120]
[422909900,1779610427000,523.33,0.00027731,120]
[422909901,1779610700000,21120.0,0.000226,120]
[422909902,1779610729000,165.88,0.00022,120]
[422909903,1779610795000,166.45,0.00027927,120]
[422909905,1779610869000,500.0,0.00027571,120]
[422909907,1779611128000,500.0,0.00027399,120]
[422909908,1779611155000,500.0,0.00027399,120]
[422909909,1779611196000,520.96525379,0.00027399,120]
[422909910,1779611340000,1000.0,0.00028081,120]
[422909922,1779611432000,-153.23,0.00010942,2]
[422909920,1779611432000,-153.23,9.119e-05,2]
[422909923,1779611432000,-149.25706108,0.00012766,2]
[422909921,1779611432000,-301.46175608,0.0001003,2]
[422909929,1779611432000,-2354.278804,0.00015,2]
[422909924,1779611432000,-3.97293892,0.00012766,2]
[422909926,1779611432000,-97.97903058,0.00014932,2]
[422909927,1779611432000,-402.02096942,0.00014932,2]
[422909928,1779611432000,-62173.69103416,0.00015,2]
[422909925,1779611432000,-153.23,0.0001459,2]
[422909988,1779611438000,-150.59932888,0.00017951,2]
[422910002,1779611438000,-187.16514992,0.00018,2]
[422909984,1779611438000,-150.0,0.00017951,2]
[422910000,1779611438000,-152.0,0.00017979,7]
[422909996,1779611438000,-150.0,0.00017951,2]
[422909994,1779611438000,-150.0,0.00017951,2]
[422909992,1779611438000,-150.0,0.00017951,2]
[422909981,1779611438000,-150.0,0.00017951,2]
[422909979,1779611438000,-156.06399732,0.00017951,4]
[422909977,1779611438000,-1350.0,0.00017875,7]
[422909975,1779611438000,-650.0,0.00017875,2]
[422909962,1779611438000,-153.23,0.00016413,2]
[422909965,1779611438000,-2500.0,0.00017497,2]
[422909971,1779611438000,-6410.43525502,0.00017775,2]
[422909967,1779611438000,-14021.39,0.00017728,2]
[422909966,1779611438000,-169.32,0.00017507,2]
[422909964,1779611438000,-200.0,0.00017276,2]
[422909969,1779611438000,-9999.99,0.00017728,2]
[422909963,1779611438000,-397.3,0.00016438,2]